bitfinex-derivatives/quotes_ETHF0:USTF0_20241005
["timestamp","ask_amount","ask_price","bid_price","bid_amount"]
[1728086761926,1.10941,2421.1,2420.9,1.6019]
[1728086762529,0.8203,2421.1,2420.9,1.6019]
[1728086763030,1.2203,2421.1,2420.9,1.6019]
[1728086763535,1.2203,2421.1,2420.9,0.4119]
[1728086764238,1.2203,2421.1,2420.9,0.70103]
[1728086765328,1.2203,2421.1,2420.9,0.4119]
[1728086766930,1.2203,2421.1,2420.9,0.70103]
[1728086767524,1.2203,2421.1,2420.8,0.28913]
[1728086767921,1.50941,2421.1,2420.7,0.4091]
[1728086768141,1.50941,2421.1,2420.8,0.28914]
[1728086768528,1.50941,2421.1,2420.7,0.69825]
[1728086768730,1.2203,2421.1,2420.7,0.4091]
[1728086769035,1.2203,2421.1,2420.7,0.69825]
[1728086769036,0.28912,2421.0,2420.7,0.69825]
[1728086769538,1.2203,2421.1,2420.7,0.69825]
[1728086769539,1.50941,2421.1,2420.7,0.69825]
[1728086769929,1.2203,2421.1,2420.8,0.28913]
[1728086770432,3.2078,2421.3,2421.0,2.58]
[1728086770630,0.3903,2421.3,2421.2,0.28909]
[1728086771233,0.3903,2421.3,2421.2,2.86909]
[1728086771438,4.98045,2421.6,2421.4,0.28907]
[1728086771736,0.28906,2421.5,2421.3,1.10378]
[1728086772239,4.41866,2421.5,2421.3,1.10378]
[1728086772637,4.41867,2421.4,2421.3,0.8147]
[1728086772836,0.28907,2421.4,2421.3,0.8147]
[1728086773041,4.1296,2421.4,2421.3,1.10378]
[1728086774541,4.1296,2421.4,2421.3,0.8147]
[1728086774734,4.41867,2421.4,2421.3,0.8147]
[1728086775041,4.41867,2421.4,2421.3,1.10378]
[1728086775439,4.1296,2421.4,2421.2,2.86909]
[1728086775642,0.28908,2421.3,2421.2,2.58]
[1728086778742,0.28908,2421.3,2421.1,0.7103]
[1728086779147,0.4065,2421.5,2421.1,0.7103]
[1728086779450,0.28909,2421.3,2421.1,0.7103]
[1728086780448,0.28909,2421.2,2421.1,0.7103]
[1728086780945,0.28909,2421.3,2421.1,0.7103]
[1728086781147,0.28909,2421.2,2421.1,0.7103]
[1728086781945,0.28909,2421.2,2421.1,0.4212]
[1728086783150,3.6143,2421.5,2420.8,2.58]
[1728086783151,6.91695,2421.5,2420.8,2.86914]
[1728086783445,0.28913,2420.9,2420.8,2.9718]
[1728086783649,0.8066,2421.1,2420.8,3.26094]
[1728086783839,0.68853,2421.0,2420.8,3.26094]
[1728086784447,0.3994,2421.0,2420.9,0.28913]
[1728086784645,0.28911,2421.1,2420.9,0.28913]
[1728086785343,0.28911,2421.1,2420.9,0.28912]
[1728086786550,0.798,2421.3,2420.9,0.28912]
[1728086786551,0.28912,2421.0,2420.9,0.28912]
[1728086790150,0.28912,2421.0,2420.8,3.26093]
[1728086791050,0.28912,2421.0,2420.9,0.28913]
[1728086791662,0.28912,2421.0,2420.9,1.47913]
[1728086791849,0.28912,2421.0,2420.9,1.19]
[1728086793548,1.52072,2421.3,2420.9,1.47913]
[1728086793549,0.28911,2421.1,2420.9,1.47913]
[1728086794354,1.52072,2421.3,2420.9,1.19]
[1728086794651,0.28912,2421.0,2420.9,1.19]
[1728086795542,1.52072,2421.3,2420.9,1.19]
[1728086795741,0.28912,2421.0,2420.9,1.19]
[1728086797254,0.28911,2421.1,2420.9,1.47913]
[1728086797953,0.28911,2421.1,2420.9,1.19]
[1728086798454,0.28911,2421.1,2420.9,1.47912]
[1728086799757,0.28911,2421.1,2420.9,1.19]
[1728086800948,0.28911,2421.1,2420.9,1.47913]
[1728086801748,1.52072,2421.3,2420.9,1.19]
[1728086801749,0.28912,2421.0,2420.9,1.19]
[1728086803556,0.28911,2421.1,2420.9,1.47912]
[1728086804055,0.28911,2421.1,2420.9,2.5549234]
[1728086805150,1.52072,2421.3,2420.9,2.2658034]
[1728086805151,0.28909,2421.2,2420.9,2.2658034]
[1728086805351,0.28912,2421.1,2420.9,2.2658034]
[1728086805551,0.28912,2421.1,2420.9,2.5549334]
[1728086807362,0.28912,2421.1,2421.0,1.0758034]
[1728086807566,0.28912,2421.1,2420.9,2.5549334]
[1728086807863,0.28912,2421.1,2421.0,1.0758034]
[1728086808055,0.28912,2421.1,2420.9,2.5549334]
[1728086808655,0.28912,2421.1,2421.0,1.0758034]
[1728086808860,0.28912,2421.1,2420.9,2.5549334]
[1728086809059,0.28912,2421.0,2420.9,2.2658034]
[1728086809259,0.28912,2421.0,2420.9,3.80404008]
[1728086809769,0.28912,2421.0,2420.9,1.0758034]
[1728086809961,0.28914,2420.8,2420.7,4.2836034]
[1728086810165,0.28914,2420.8,2420.7,3.2078]
[1728086812072,0.28914,2420.8,2420.6,2.6569034]
[1728086812371,0.28914,2420.8,2420.6,1.5811]
[1728086812959,0.28914,2420.8,2420.6,2.6569034]
[1728086813266,0.28914,2420.8,2420.6,1.5811]
[1728086813462,0.28914,2420.8,2420.6,1.87026]
[1728086813666,1.2347,2420.9,2420.6,1.5811]
[1728086813667,0.28915,2420.7,2420.6,1.5811]
[1728086814174,0.28915,2420.8,2420.6,1.5811]
[1728086814363,0.28915,2420.7,2420.6,1.5811]
[1728086817664,1.2347,2420.9,2420.5,1.3649734]
[1728086817665,0.28917,2420.6,2420.5,1.0758034]
[1728086817858,0.28918,2420.5,2420.4,3.0941034]
[1728086818058,0.69598,2420.5,2420.4,3.0941034]
[1728086818672,0.4068,2420.5,2420.4,3.0941034]
[1728086819272,0.4068,2420.5,2420.4,3.3832934]
[1728086820363,0.69598,2420.5,2420.4,3.0941034]
[1728086820559,0.4068,2420.5,2420.4,3.3832934]
[1728086820964,0.4068,2420.5,2420.4,0.8283]
[1728086821165,0.69598,2420.5,2420.4,0.4063]
[1728086821965,1.10418,2420.5,2420.4,0.4063]
[1728086823268,1.10418,2420.5,2420.4,1.5963]
[1728086825677,0.28916,2420.7,2420.5,0.28917]
[1728086825886,0.096,2421.0,2420.6,0.3947]
[1728086826170,0.9194,2421.2,2421.0,0.28912]
[1728086826378,0.9194,2421.2,2421.1,1.5911]
[1728086826379,1.1125,2421.2,2421.1,1.5911]
[1728086827365,3.49689,2421.3,2421.2,0.28909]
[1728086827566,3.49689,2421.3,2421.1,2.2969]
[1728086827980,3.2078,2421.3,2421.2,0.28909]
[1728086828279,3.49689,2421.3,2421.1,2.2969]
[1728086828979,3.2078,2421.3,2421.2,0.28909]
[1728086829372,3.2078,2421.3,2421.1,2.0078]
[1728086829577,3.49688,2421.3,2421.1,2.2969]
[1728086830077,0.28908,2421.3,2421.1,2.2969]
[1728086830278,0.28907,2421.4,2421.2,0.28909]
[1728086830473,0.28907,2421.4,2421.3,1.19]
[1728086836172,0.28909,2421.3,2421.2,1.19]
[1728086841088,0.28906,2421.5,2421.3,0.28908]
[1728086841288,0.28906,2421.5,2421.4,1.6103]
[1728086842085,0.28906,2421.5,2421.4,0.4203]
[1728086842289,0.28907,2421.4,2421.3,1.19]
[1728086844390,0.28908,2421.3,2421.2,0.4203]
[1728086844587,0.28908,2421.3,2421.2,0.70939]
[1728086844789,0.28908,2421.4,2421.3,0.28908]
[1728086844990,0.28908,2421.4,2421.3,1.19]
[1728086847695,4.4099,2421.7,2421.2,1.6103]
[1728086847696,0.28908,2421.3,2421.2,1.6103]
[1728086849191,0.28908,2421.3,2421.2,0.4203]
[1728086850992,0.28908,2421.3,2421.2,1.6103]
[1728086851388,0.28908,2421.3,2421.2,1.19]
[1728086851893,1.10768,2421.3,2421.2,1.19]
[1728086852592,0.8186,2421.3,2421.0,1.19]
[1728086852793,0.28911,2421.1,2421.0,1.19]
[1728086853102,0.2891,2421.2,2421.0,1.47912]
[1728086853400,0.8186,2421.3,2421.0,1.47912]
[1728086853701,0.2891,2421.2,2421.0,1.47912]
[1728086854899,0.2891,2421.2,2421.1,1.19]
[1728086856495,1.10769,2421.3,2421.1,1.47911]
[1728086856704,0.8186,2421.3,2421.1,1.19]
[1728086856901,0.28909,2421.2,2421.1,1.19]
[1728086858396,0.8186,2421.3,2421.1,1.19]
[1728086858596,0.28909,2421.2,2421.1,1.19]
[1728086860300,0.8186,2421.3,2421.1,1.19]
[1728086860502,0.28909,2421.2,2421.1,1.19]
[1728086863013,0.28909,2421.2,2421.1,1.5755]
[1728086867014,0.28909,2421.2,2421.1,1.8646]
[1728086867211,0.0272,2421.3,2421.1,1.8646]
[1728086867212,0.31629,2421.3,2421.1,1.8646]
[1728086867711,0.28909,2421.2,2421.1,1.5755]
[1728086868218,0.28909,2421.2,2421.1,1.86461]
[1728086869913,0.0272,2421.3,2421.1,1.86461]
[1728086869914,0.31629,2421.3,2421.1,5.99501]
[1728086870210,0.31629,2421.3,2421.1,7.0708134]
[1728086871219,0.31629,2421.3,2421.2,1.0758034]
[1728086871606,0.31629,2421.3,2421.2,5.2062034]
[1728086872206,0.31629,2421.3,2421.2,2.6140079]
[1728086872711,0.31629,2421.3,2421.2,6.7444079]
[1728086874318,0.31629,2421.3,2421.2,7.28230961]
[1728086875712,0.0272,2421.3,2421.2,7.28230961]
[1728086875917,0.0272,2421.3,2421.2,7.57139961]
[1728086876715,0.0272,2421.3,2421.2,10.77919961]
[1728086877014,0.096,2421.6,2421.5,0.28906]
[1728086877321,3.89523,2421.8,2421.5,4.09556719]
[1728086877519,3.89523,2421.8,2421.5,2.55795792]
[1728086878019,0.28903,2421.7,2421.6,0.51977286]
[1728086878916,0.28903,2421.7,2421.6,0.51965833]
[1728086879118,0.28903,2421.7,2421.5,2.26889792]
[1728086880015,0.28903,2421.7,2421.6,0.51953789]
[1728086880322,0.3984,2421.8,2421.6,0.4199]
[1728086880624,0.28903,2421.7,2421.6,0.4199]
[1728086881120,0.70993,2421.7,2421.6,0.4199]
[1728086882120,0.68743,2421.8,2421.6,0.70895]
[1728086882315,0.68743,2421.8,2421.7,1.19]
[1728086883228,0.4209,2422.0,2421.7,1.19]
[1728086883523,0.28903,2421.8,2421.7,1.19]
[1728086887628,0.28903,2421.8,2421.7,2.005]
[1728086892826,0.28903,2421.8,2421.7,1.19]
[1728086893027,0.28903,2421.7,2421.6,1.6099]
[1728086893231,0.69453,2421.7,2421.6,1.6099]
[1728086893733,0.28903,2421.7,2421.6,1.6099]
[1728086894127,0.28903,2421.8,2421.6,1.89894]
[1728086894323,0.69051,2421.9,2421.8,1.19]
[1728086900948,0.69051,2421.9,2421.8,1.5998]
[1728086902544,0.69051,2421.9,2421.8,1.9885]
[1728086902848,0.28901,2421.9,2421.8,1.9885]
[1728086903842,0.28901,2421.9,2421.8,2.27752]
[1728086905050,0.28901,2421.9,2421.8,1.9885]
[1728086905246,0.28901,2421.9,2421.8,0.7985]
[1728086905438,0.28902,2421.8,2421.7,1.19]
[1728086905644,0.70612,2421.8,2421.7,1.19]
[1728086907942,3.93026,2422.2,2421.7,1.19]
[1728086908149,0.28902,2421.9,2421.7,1.47903]
[1728086908848,0.72247,2422.1,2421.7,1.19]
[1728086909146,0.28902,2421.8,2421.7,1.19]
[1728086912453,0.19402,2421.8,2421.7,1.19]
[1728086915052,0.28903,2421.7,2421.6,0.4199]
[1728086915249,0.28903,2421.7,2421.6,1.6099]
[1728086921452,0.28903,2421.7,2421.6,2.12958455]
[1728086922157,0.28903,2421.7,2421.6,2.68879792]
[1728086922351,0.28903,2421.7,2421.6,3.20860182]
[1728086924152,0.28903,2421.7,2421.6,2.68879792]
[1728086924451,0.28903,2421.7,2421.6,3.20865682]
[1728086926157,0.28903,2421.7,2421.6,2.1297589]
[1728086926757,0.28903,2421.7,2421.6,0.5198589]
[1728086926961,0.28903,2421.7,2421.4,1.07889792]
[1728086926962,0.28906,2421.5,2421.4,1.07889792]
[1728086927261,0.28908,2421.3,2421.2,3.0856448]
[1728086927769,0.28908,2421.3,2421.2,0.3884]
[1728086928465,0.28909,2421.2,2421.1,1.19]
[1728086928656,0.68549,2421.2,2421.1,1.19]
[1728086929561,0.28911,2421.1,2421.0,1.48579792]
[1728086929751,1.19,2421.1,2420.8,2.6972448]
[1728086929951,1.19,2421.1,2420.7,3.8872448]
[1728086929952,0.28914,2420.8,2420.7,3.8872448]
[1728086930364,0.28914,2420.8,2420.7,1.19]
[1728086930756,0.28917,2420.6,2420.5,1.90949792]
[1728086931057,0.28917,2420.6,2420.5,0.4069]
[1728086931260,4.1312,2420.6,2420.3,1.07889792]
[1728086931563,1.19,2420.7,2420.2,2.30331]
[1728086931564,0.28919,2420.4,2420.2,2.30331]
[1728086931959,1.2544,2420.5,2420.1,1.07889792]
[1728086932157,0.28921,2420.3,2420.1,1.47922]
[1728086932357,0.28921,2420.3,2420.0,3.92083]
[1728086932560,0.28921,2420.3,2420.0,0.71303]
[1728086932766,0.28921,2420.3,2420.1,1.19]
[1728086934662,0.28921,2420.2,2420.1,1.19]
[1728086934862,0.28921,2420.2,2420.0,0.4238]
[1728086935753,0.863,2420.1,2420.0,0.4238]
[1728086936160,0.863,2420.1,2420.0,0.71304]
[1728086936963,0.863,2420.1,2420.0,4.84504]
[1728086944164,0.863,2420.1,2420.0,4.5558]
[1728086945776,1.15222,2420.1,2420.0,4.5558]
[1728086946471,1.15019592,2420.1,2420.0,4.5558]
[1728086947274,0.28924,2420.0,2419.5,3.2078]
[1728086947469,0.28924,2420.0,2419.6,1.19]
[1728086947470,0.28928,2419.7,2419.6,1.19]
[1728086948068,0.28928,2419.6,2419.5,1.9989]
[1728086949068,0.72313,2419.9,2419.5,1.9989]
[1728086949268,0.28928,2419.7,2419.5,1.9989]
[1728086951663,0.28928,2419.7,2419.6,1.19]
[1728086951863,0.28927,2419.8,2419.6,1.19]
[1728086955667,0.28927,2419.8,2419.6,1.47928]
[1728086956374,0.28924,2420.0,2419.8,0.28926]
[1728086956573,0.28924,2420.0,2419.5,4.0167]
[1728086956574,0.28924,2420.0,2419.9,1.6018]
[1728086959377,0.28924,2420.0,2419.9,2.0166]
[1728086960971,0.31644,2420.0,2419.9,2.0166]
[1728086963879,0.31644,2420.0,2419.9,1.6018]
[1728086964974,1.17644,2420.0,2419.9,1.6018]
[1728086967988,1.17644,2420.0,2419.9,0.4118]
[1728086968180,0.28925,2419.9,2419.8,1.19]
[1728086968484,1.09235,2419.9,2419.8,1.19]
[1728086970081,0.28926,2419.8,2419.7,1.19]
[1728086970278,0.70726,2419.8,2419.7,1.19]
[1728086971384,0.28926,2419.8,2419.7,1.19]
[1728086974788,0.28926,2419.8,2419.7,1.47927]
[1728086974985,0.28926,2419.8,2419.7,1.19]
[1728086980994,0.8872,2420.0,2419.7,5.3228]
[1728086981198,0.8872,2420.0,2419.9,1.36814792]
[1728086981494,0.8872,2420.0,2419.9,3.4461966]
[1728086981691,0.8872,2420.0,2419.9,4.39129579]
[1728086981887,0.8872,2420.0,2419.9,3.8710966]
[1728086982098,0.8872,2420.0,2419.9,4.39127074]
[1728086982792,0.86,2420.0,2419.9,4.39127074]
[1728086983017,0.2183,2420.0,2419.9,8.52327074]
[1728086983207,0.096,2420.4,2420.3,0.2892]
[1728086983495,4.3978,2421.1,2420.3,7.37944877]
[1728086983496,0.096,2420.9,2420.3,7.37944877]
[1728086983696,0.096,2420.9,2420.8,1.19]
[1728086983697,0.28913,2420.9,2420.8,1.19]
[1728086984194,0.8525,2421.0,2420.8,1.19]
[1728086984399,0.8525,2421.0,2420.9,1.19]
[1728086984590,3.2078,2421.1,2420.9,1.47913]
[1728086984786,0.71629,2421.3,2421.0,1.47912]
[1728086984787,0.4272,2421.3,2421.0,1.47912]
[1728086985598,0.4272,2421.3,2421.0,2.86912]
[1728086985796,7.5074,2421.7,2421.2,2.58]
[1728086985797,3.3038,2421.7,2421.2,2.58]
[1728086985996,0.28905,2421.6,2421.2,2.86908]
[1728086986201,0.28905,2421.6,2421.3,0.4167]
[1728086986500,0.8264,2421.8,2421.3,0.4167]
[1728086986697,0.28904,2421.7,2421.3,0.4167]
[1728086987092,0.8264,2421.8,2421.3,0.4167]
[1728086987293,0.28906,2421.5,2421.3,0.4167]
[1728086988099,0.8264,2421.8,2421.3,0.4167]
[1728086988100,0.28906,2421.6,2421.3,0.4167]
[1728086988799,0.8264,2421.8,2421.3,0.4167]
[1728086988993,0.28906,2421.5,2421.3,0.4167]
[1728086989695,4.0342,2421.8,2421.3,0.4167]
[1728086989896,0.28905,2421.6,2421.3,0.4167]
[1728086995395,4.0342,2421.8,2421.4,2.58]
[1728086995598,0.28905,2421.6,2421.4,2.58]
[1728086998313,0.28906,2421.5,2421.4,2.58]
[1728087001107,0.8264,2421.8,2421.3,0.4167]
[1728087001108,4.75678,2421.8,2421.3,0.4167]
[1728087001306,0.28907,2421.5,2421.3,0.4167]
[1728087006409,0.28905,2421.6,2421.3,0.70578]
[1728087007306,0.28906,2421.5,2421.3,0.70578]
[1728087007507,0.28906,2421.5,2421.4,1.19]
[1728087010209,4.75678,2421.8,2421.4,1.19]
[1728087010408,0.28905,2421.6,2421.4,1.19]
[1728087011516,0.0272,2421.5,2421.4,1.19]
[1728087013905,0.31626,2421.5,2421.4,1.19]
[1728087014118,0.28907,2421.4,2421.3,1.6067]
[1728087014324,0.31626,2421.5,2421.3,1.6067]
[1728087019015,0.31626,2421.5,2421.3,1.89578]
[1728087019418,0.31626,2421.5,2421.3,1.6067]
[1728087019824,0.31626,2421.5,2421.3,1.89578]
[1728087020716,0.31626,2421.5,2421.3,1.6067]
[1728087022020,0.28909,2421.3,2421.1,1.6172]
[1728087022223,1.2429,2421.4,2421.1,2.0403]
[1728087022529,0.28909,2421.2,2421.1,1.6131]
[1728087022719,1.2429,2421.4,2421.1,1.9022]
[1728087022720,0.28909,2421.3,2421.1,1.9022]
[1728087023023,0.28909,2421.3,2421.1,1.6131]
[1728087023623,1.2429,2421.4,2420.8,1.19]
[1728087023624,0.28911,2421.1,2420.8,1.19]
[1728087023921,0.3974,2421.0,2420.7,6.08604781]
[1728087024123,0.28914,2420.8,2420.7,6.08604781]
[1728087024328,0.8257,2420.9,2420.7,6.87564781]
[1728087024524,1.11484,2420.9,2420.7,6.87564781]
[1728087027828,1.11484,2420.9,2420.7,7.16479781]
[1728087028724,1.11484,2420.9,2420.7,6.87564781]
[1728087031525,0.28914,2420.8,2420.7,6.87564781]
[1728087032023,1.11484,2420.9,2420.7,6.87564781]
[1728087032231,1.11484,2420.9,2420.7,7.16479781]
[1728087033234,1.11484,2420.9,2420.7,6.87564781]
[1728087033443,0.28914,2420.8,2420.7,6.87564781]
[1728087034229,0.28914,2420.8,2420.7,1.19]
[1728087035739,0.28913,2420.9,2420.7,1.47915]
[1728087036435,0.28913,2421.0,2420.8,0.28914]
[1728087036640,0.28913,2421.0,2420.9,2.3578]
[1728087037033,4.41953,2421.0,2420.9,2.3578]
[1728087038036,0.28913,2421.0,2420.9,2.3578]
[1728087038242,4.41953,2421.0,2420.9,2.3578]
[1728087039937,0.28913,2421.0,2420.9,2.3578]
[1728087040344,4.41953,2421.0,2420.9,2.3578]
[1728087040642,0.71301,2421.1,2420.9,2.64692]
[1728087041430,0.28912,2421.0,2420.9,2.3578]
[1728087042736,0.71301,2421.1,2420.9,2.64692]
[1728087042948,0.28912,2421.0,2420.9,2.3578]
[1728087043153,0.71301,2421.1,2420.9,2.64693]
[1728087043343,0.4239,2421.1,2420.9,2.3578]
[1728087043546,0.28912,2421.0,2420.9,2.3578]
[1728087044038,0.4239,2421.1,2420.9,2.3578]
[1728087044448,0.71301,2421.1,2420.9,2.64693]
[1728087044849,0.71301,2421.1,2420.9,2.3578]
[1728087046654,0.28912,2421.0,2420.9,2.3578]
[1728087046845,0.71301,2421.1,2420.9,2.3578]
[1728087047647,0.4239,2421.1,2420.9,2.3578]
[1728087047954,0.71301,2421.1,2420.9,2.3578]
[1728087049151,0.28912,2421.0,2420.9,2.3578]
[1728087051453,0.28912,2421.0,2420.9,0.7747]
[1728087051754,0.28915,2420.7,2420.6,5.2027]
[1728087051945,0.28915,2420.7,2420.6,5.6275]
[1728087052953,0.28915,2420.8,2420.6,5.6275]
[1728087053255,0.28915,2420.8,2420.6,5.91667]
[1728087053657,0.28915,2420.8,2420.6,5.6275]
[1728087053957,1.13601,2421.0,2420.6,5.6275]
[1728087054252,0.28915,2420.8,2420.6,5.6275]
[1728087054450,0.28915,2420.7,2420.6,5.6275]
[1728087055459,0.28915,2420.7,2420.6,9.7587]
[1728087055953,1.09905,2420.8,2420.6,10.04786]
[1728087056156,0.28915,2420.8,2420.6,5.91666]
[1728087056360,0.28915,2420.8,2420.6,5.6275]
[1728087056547,0.28915,2420.8,2420.6,2.4197]
[1728087056748,0.28915,2420.7,2420.6,2.4197]
[1728087057351,0.28915,2420.8,2420.6,6.5509]
[1728087057559,0.28915,2420.8,2420.6,2.4197]
[1728087058562,5.21655,2421.2,2420.7,1.19]
[1728087058563,3.3038,2421.2,2420.7,1.19]
[1728087058759,0.28911,2421.1,2420.8,0.28914]
[1728087059264,0.31631,2421.1,2420.9,0.4204]
[1728087059465,0.28912,2421.0,2420.9,0.4204]
[1728087060258,0.28912,2421.0,2420.6,1.9949]
[1728087060259,0.3935,2421.0,2420.6,1.9949]
[1728087060452,0.7988,2420.9,2420.5,3.2078]
[1728087060657,3.2078,2420.7,2420.4,0.4204]
[1728087060858,0.28918,2420.5,2420.4,0.4204]
[1728087061163,0.28919,2420.4,2420.1,4.28436582]
[1728087061365,0.28921,2420.3,2420.1,3.6282]
[1728087061562,0.28921,2420.2,2420.1,3.6282]
[1728087061755,0.28921,2420.3,2420.1,3.6282]
[1728087061951,0.28921,2420.2,2420.1,3.6282]
[1728087062252,0.28921,2420.3,2420.1,4.8182]
[1728087062763,0.28921,2420.3,2420.1,1.6104]
[1728087063161,0.28921,2420.3,2420.1,0.4204]
[1728087063353,0.28921,2420.2,2420.1,1.6104]
[1728087064171,0.28921,2420.3,2420.1,1.6104]
[1728087064661,0.28921,2420.3,2420.2,1.19]
[1728087067160,0.7988,2420.4,2420.2,1.19]
[1728087067360,1.08799,2420.4,2420.2,1.19]
[1728087067968,1.08799,2420.4,2420.3,1.19]
[1728087070071,0.3878,2420.4,2420.3,1.19]
[1728087070273,0.8189,2420.7,2420.3,1.19]
[1728087070274,0.096,2420.7,2420.5,0.28918]
[1728087070568,1.11674,2420.9,2420.6,0.3916]
[1728087070770,4.04156,2421.2,2420.6,0.3916]
[1728087070771,0.71961,2421.1,2420.8,0.28914]
[1728087070969,0.71961,2421.1,2420.9,1.19]
[1728087071169,0.28915,2420.8,2420.7,1.19]
[1728087071370,0.4305,2421.1,2420.6,0.3916]
[1728087071574,0.28919,2420.4,2420.3,1.07656582]
[1728087071874,1.5995,2420.7,2420.2,1.19]
[1728087071875,0.2892,2420.3,2420.2,1.19]
[1728087072073,1.102,2420.3,2420.2,1.19]
[1728087072872,0.8128,2420.3,2420.2,1.19]
[1728087073866,0.8128,2420.3,2420.0,1.07656582]
[1728087074072,1.10201,2420.3,2420.2,1.19]
[1728087075585,0.8128,2420.3,2420.2,1.19]
[1728087075777,1.102,2420.3,2420.2,1.19]
[1728087087276,0.28922,2420.1,2420.0,1.19]
[1728087096187,0.28925,2419.9,2419.8,0.3947]
[1728087096385,0.28927,2419.7,2419.6,5.68817399]
[1728087099289,5.6073,2419.8,2419.3,1.6049]
[1728087099490,0.72321,2419.7,2419.3,1.89422]
[1728087099690,0.28931,2419.4,2419.3,1.89422]
[1728087099892,0.72321,2419.7,2419.3,1.89422]
[1728087100296,0.28931,2419.4,2419.3,1.89422]
[1728087101795,0.2893,2419.5,2419.3,1.89422]
[1728087102401,0.28931,2419.4,2419.3,1.6049]
[1728087102792,0.28931,2419.4,2419.3,0.4149]
[1728087102998,0.28931,2419.4,2419.3,1.6049]
[1728087105494,0.4141,2419.5,2419.2,1.9872]
[1728087105691,0.4141,2419.5,2419.2,0.7972]
[1728087105692,0.28932,2419.3,2419.2,0.7972]
[1728087106099,4.1336,2419.3,2418.9,0.28936]
[1728087106300,0.28935,2419.1,2418.9,0.28936]
[1728087107208,0.70344,2419.2,2419.0,0.28935]
[1728087107500,0.28934,2419.1,2419.0,0.28935]
[1728087107807,0.4141,2419.2,2419.0,0.28935]
[1728087107808,0.70344,2419.2,2419.0,0.28935]
[1728087107993,0.28934,2419.1,2419.0,0.28935]
[1728087108203,0.70344,2419.2,2419.0,0.28935]
[1728087109701,0.28934,2419.1,2419.0,0.28935]
[1728087109906,0.28936,2419.0,2418.9,1.19]
[1728087110403,0.28936,2419.0,2418.9,1.47937]
[1728087110704,0.28936,2419.0,2418.9,0.28937]
[1728087111099,0.28936,2419.0,2418.8,1.10357]
[1728087111305,0.28936,2419.0,2418.4,1.19]
[1728087111306,0.28941,2418.6,2418.4,1.19]
[1728087111606,0.28941,2418.6,2418.5,0.4145]
[1728087112799,0.28941,2418.6,2418.5,0.70392]
[1728087113007,0.28941,2418.6,2418.5,0.4145]
[1728087113606,4.42381,2418.6,2418.5,0.4145]
[1728087113797,5.61381,2418.6,2418.5,0.4145]
[1728087115706,0.28943,2418.4,2418.3,0.8257]
[1728087115913,0.28943,2418.4,2418.3,1.2476]
[1728087116111,2.3992,2418.5,2418.0,3.2078]
[1728087116309,2.3992,2418.5,2418.1,0.71136]
[1728087116310,0.28945,2418.2,2418.1,0.71136]
[1728087116716,0.28945,2418.3,2418.1,0.4219]
[1728087116911,0.28945,2418.3,2418.1,0.71135]
[1728087117107,2.3992,2418.5,2418.2,0.28945]
[1728087117108,0.28944,2418.4,2418.2,0.28945]
[1728087117514,2.3992,2418.5,2418.2,0.28945]
[1728087117808,2.3992,2418.5,2418.1,0.4219]
[1728087118015,0.28943,2418.4,2418.1,1.6119]
[1728087118208,0.28943,2418.4,2418.2,0.28945]
[1728087118908,0.28943,2418.4,2418.1,1.6119]
[1728087118909,0.28943,2418.4,2418.3,0.28944]
[1728087120810,0.28943,2418.4,2418.2,0.28944]
[1728087121210,2.3992,2418.5,2418.1,1.6119]
[1728087121410,0.28945,2418.3,2418.1,1.90136]
[1728087121615,0.28945,2418.3,2418.2,0.28945]
[1728087122814,2.3992,2418.5,2418.1,1.6119]
[1728087122815,0.28943,2418.4,2418.1,1.6119]
[1728087123118,0.28943,2418.4,2418.2,0.28945]
[1728087124717,0.28943,2418.4,2418.3,0.8027]
[1728087131323,0.28942,2418.5,2418.4,0.28942]
[1728087131524,0.28942,2418.5,2418.3,0.8027]
[1728087131717,0.28942,2418.5,2418.4,0.4152]
[1728087146434,4.3978,2418.6,2417.9,1.19]
[1728087146636,4.3978,2418.6,2418.1,0.4064]
[1728087146637,0.28945,2418.2,2418.1,0.4064]
[1728087150133,0.28944,2418.4,2418.2,0.28945]
[1728087150330,0.096,2418.7,2418.1,3.6142]
[1728087150529,0.096,2418.7,2418.5,1.19]
[1728087150731,1.47939,2418.7,2418.6,0.3879]
[1728087151126,0.28944,2418.3,2418.2,1.09105]
[1728087151437,1.19,2418.7,2418.2,1.1895]
[1728087151637,0.28943,2418.5,2418.3,0.28944]
[1728087152030,0.28943,2418.4,2418.2,1.47894]
[1728087152729,0.28943,2418.4,2418.3,0.28944]
[1728087153237,0.28942,2418.5,2418.4,0.28943]
[1728087153932,0.28942,2418.5,2418.3,0.28943]
[1728087154136,0.28942,2418.5,2418.4,0.28943]
[1728087155141,0.28941,2418.6,2418.4,0.28943]
[1728087155330,0.0272,2418.5,2418.4,0.28943]
[1728087157238,0.0272,2418.5,2418.4,0.81110467]
[1728087157631,0.0272,2418.5,2418.4,0.28943]
[1728087157829,0.31662,2418.5,2418.4,0.28943]
[1728087158029,0.31662,2418.5,2418.3,2.26656582]
[1728087158030,0.31662,2418.5,2418.3,2.55600582]
[1728087158232,0.28943,2418.4,2418.3,1.07656582]
[1728087158438,0.28943,2418.4,2418.3,1.59824834]
[1728087159136,0.28943,2418.4,2418.3,1.07656582]
[1728087159330,0.0272,2418.5,2418.4,0.28943]